bitfinex-derivatives/quotes_BTCF0:USTF0_20251220
["timestamp","ask_amount","ask_price","bid_price","bid_amount"]
[1766214673539,0.00016995,88288.0,88270.0,0.011335]
[1766214673748,0.00016995,88288.0,88270.0,0.28273587]
[1766214675050,0.00016995,88288.0,88270.0,0.011335]
[1766214675251,0.00016995,88288.0,88270.0,0.28273587]
[1766214675752,0.01150275,88288.0,88269.0,0.02836]
[1766214675947,0.01150275,88288.0,88269.0,0.01836]
[1766214676144,0.00016995,88288.0,88270.0,0.27140087]
[1766214676742,0.00016995,88288.0,88271.0,0.0113348]
[1766214677451,0.00016995,88288.0,88270.0,0.27140087]
[1766214678042,0.00016995,88288.0,88271.0,0.0113349]
[1766214682449,0.00016995,88288.0,88270.0,0.27140087]
[1766214682761,0.00016995,88288.0,88269.0,0.01832]
[1766214684562,0.02836,88290.0,88282.0,0.0113334]
[1766214684746,0.02832,88290.0,88282.0,0.0113334]
[1766214684951,0.02836,88292.0,88282.0,0.0113334]
[1766214685255,0.02836,88293.0,88285.0,0.0113331]
[1766214687761,0.02836,88293.0,88281.0,0.0113335]
[1766214687962,0.02836,88293.0,88284.0,0.0113332]
[1766214689159,0.02836,88293.0,88280.0,0.01150365]
[1766214690370,0.02836,88293.0,88280.0,0.28290452]
[1766214691167,0.02836,88293.0,88280.0,0.01150365]
[1766214691366,0.02836,88293.0,88280.0,0.28290452]
[1766214692563,0.02836,88293.0,88283.0,0.0113333]
[1766214693671,0.00249158,88298.0,88286.0,0.011333]
[1766214695877,0.00249158,88298.0,88282.0,0.0396934]
[1766214696079,0.00249158,88298.0,88282.0,0.02836]
[1766214696276,0.00249158,88298.0,88282.0,0.01548]
[1766214696481,0.00016995,88298.0,88282.0,0.01548]
[1766214697681,0.00016995,88298.0,88283.0,0.0113334]
[1766214700689,0.00016995,88298.0,88286.0,0.011333]
[1766214704188,0.00016995,88298.0,88289.0,0.0113326]
[1766214705692,5e-08,88298.0,88289.0,0.0113326]
[1766214717499,0.27115697,88310.0,88289.0,0.0113326]
[1766214717500,0.02836,88303.0,88289.0,0.0113326]
[1766214719801,5e-08,88305.0,88281.0,0.03956849]
[1766214720000,5e-08,88305.0,88302.0,0.0113309]
[1766214720705,5e-08,88305.0,88297.0,0.0113315]
[1766214723006,5e-08,88305.0,88292.0,0.01236]
[1766214723206,5e-08,88305.0,88292.0,0.0236922]
[1766214724102,5e-08,88305.0,88292.0,0.01236]
[1766214725807,5e-08,88305.0,88295.0,0.0113318]
[1766214729320,5e-08,88305.0,88292.0,0.01236]
[1766214730217,0.01133065,88305.0,88292.0,0.01236]
[1766214731214,5e-08,88305.0,88292.0,0.01236]
[1766214732519,0.01133075,88305.0,88292.0,0.01236]
[1766214733515,0.011331,88302.0,88292.0,0.01236]
[1766214734420,5e-08,88305.0,88292.0,0.01236]
[1766214737022,5e-08,88305.0,88288.0,0.0113327]
[1766214738522,5e-08,88305.0,88287.0,0.0113328]
[1766214746224,5e-08,88305.0,88284.0,0.02836]
[1766214747331,5e-08,88305.0,88289.0,0.0113325]
[1766214748429,5e-08,88305.0,88285.0,0.011333]
[1766214748732,5e-08,88305.0,88288.0,0.0113327]
[1766214753124,5e-08,88305.0,88285.0,0.0113331]
[1766214756240,0.01133065,88305.0,88285.0,0.0113331]
[1766214756939,0.011331,88302.0,88284.0,0.02836]
[1766214757943,5e-08,88305.0,88284.0,0.0396932]
[1766214759733,5e-08,88305.0,88284.0,0.02836]
[1766214759933,0.27116011,88300.0,88284.0,0.02836]
[1766214760340,0.0113314,88299.0,88284.0,0.02836]
[1766214761039,0.27116011,88300.0,88284.0,0.02836]
[1766214761240,0.29952011,88300.0,88284.0,0.02836]
[1766214762846,0.31085141,88300.0,88284.0,0.02836]
[1766214763439,0.011333,88287.0,88265.0,0.0113356]
[1766214763644,0.0113333,88284.0,88266.0,0.02572]
[1766214763839,0.02836,88286.0,88266.0,0.02572]
[1766214764440,0.00016995,88285.0,88267.0,0.01150535]
[1766214764943,0.00016995,88285.0,88270.0,0.011335]
[1766214765140,0.00016995,88285.0,88270.0,0.28249511]
[1766214766352,0.00016995,88285.0,88270.0,0.011335]
[1766214766548,0.00016995,88285.0,88270.0,0.28249511]
[1766214767649,0.00016995,88285.0,88270.0,0.011335]
[1766214768848,0.00016995,88285.0,88270.0,0.27116011]
[1766214769043,0.00016995,88285.0,88276.0,0.0113343]
[1766214769945,5e-08,88285.0,88276.0,0.0113343]
[1766214770748,5e-08,88286.0,88280.0,0.0113337]
[1766214772443,0.02836,88287.0,88283.0,0.0113334]
[1766214772644,0.01412,88287.0,88283.0,0.0113334]
[1766214773150,0.02836,88288.0,88272.0,0.02836]
[1766214773343,0.02836,88288.0,88279.0,0.0113339]
[1766214774948,0.02836,88288.0,88274.0,0.0113345]
[1766214781356,0.02836,88288.0,88277.0,0.0113341]
[1766214781748,0.00016995,88292.0,88278.0,0.27116011]
[1766214782059,0.02836,88291.0,88278.0,0.27116011]
[1766214782245,5e-08,88292.0,88284.0,0.0113332]
[1766214782556,5e-08,88292.0,88280.0,0.27116011]
[1766214782755,5e-08,88292.0,88285.0,0.0113331]
[1766214783458,5e-08,88292.0,88290.0,0.27116011]
[1766214783760,0.00159271,88297.0,88280.0,0.27116011]
[1766214784356,0.00159271,88297.0,88289.0,0.0113326]
[1766214788150,0.00011271,88297.0,88289.0,0.0113326]
[1766214789763,0.00011271,88297.0,88286.0,0.0113329]
[1766214791761,0.00011271,88297.0,88282.0,0.0113334]
[1766214796159,0.00011271,88297.0,88279.0,0.02836]
[1766214796758,0.00011271,88297.0,88280.0,0.27116011]
[1766214797262,0.0113323,88292.0,88280.0,0.27116011]
[1766214801368,0.0113323,88292.0,88279.0,0.02836]
[1766214801669,0.0113323,88292.0,88280.0,0.27116011]
[1766214802367,0.0113318,88296.0,88280.0,0.27116011]
[1766214803772,0.00011271,88297.0,88280.0,0.27116011]
[1766214804072,0.0113318,88296.0,88280.0,0.27116011]
[1766214806365,0.00011271,88297.0,88280.0,0.27116011]
[1766214807365,0.00011271,88297.0,88281.0,0.0113336]
[1766214808663,0.0113317,88296.0,88280.0,0.27116011]
[1766214811171,0.0113317,88296.0,88279.0,0.02836]
[1766214811367,0.0113317,88296.0,88280.0,0.27116011]
[1766214812184,0.00011271,88297.0,88280.0,0.27116011]
[1766214815379,0.01144441,88297.0,88280.0,0.27116011]
[1766214815572,0.01144441,88297.0,88279.0,0.02836]
[1766214815772,0.011332,88294.0,88279.0,0.02836]
[1766214815975,0.00011271,88297.0,88279.0,0.02836]
[1766214816773,0.00011271,88297.0,88280.0,0.27116011]
[1766214817078,0.00011271,88297.0,88279.0,0.02836]
[1766214817272,0.00011271,88297.0,88280.0,0.27116011]
[1766214819280,0.06098549,88326.0,88301.0,0.011331]
[1766214819483,0.00099999,88340.0,88281.0,0.11326503]
[1766214819484,0.0113272,88332.0,88316.0,0.27116011]
[1766214819675,0.02594455,88331.0,88317.0,0.00352]
[1766214819869,0.0113267,88336.0,88317.0,0.00352]
[1766214820080,0.02594494,88335.0,88317.0,0.00352]
[1766214820381,0.0113267,88336.0,88317.0,0.00368984]
[1766214820682,0.27116011,88327.0,88318.0,0.02836]
[1766214820979,0.28248791,88327.0,88317.0,4e-08]
[1766214821285,0.29952011,88330.0,88317.0,4e-08]
[1766214821479,0.29939685,88330.0,88317.0,4e-08]
[1766214821880,0.02836,88330.0,88317.0,4e-08]
[1766214822183,0.0396875,88330.0,88317.0,4e-08]
[1766214827691,0.02836,88330.0,88317.0,4e-08]
[1766214827887,0.29939685,88330.0,88317.0,4e-08]
[1766214829499,0.02836,88330.0,88317.0,4e-08]
[1766214829800,0.29939685,88330.0,88317.0,4e-08]
[1766214830187,0.0113275,88329.0,88317.0,4e-08]
[1766214838703,0.29939685,88330.0,88317.0,4e-08]
[1766214839304,0.0113279,88326.0,88317.0,4e-08]
[1766214839503,0.02836,88325.0,88317.0,4e-08]
[1766214849195,0.0113281,88324.0,88317.0,4e-08]
[1766214849804,0.02836,88325.0,88317.0,4e-08]
[1766214854308,0.039688,88325.0,88317.0,4e-08]
[1766214854704,0.0113285,88322.0,88317.0,4e-08]
[1766214854905,0.0113288,88319.0,88317.0,4e-08]
[1766214855105,0.0396888,88319.0,88317.0,4e-08]
[1766214855311,0.0113295,88314.0,88298.0,0.0002]
[1766214855511,0.0396895,88314.0,88298.0,0.0002]
[1766214856215,0.02836,88314.0,88298.0,0.0002]
[1766214856915,0.02836,88314.0,88299.0,0.0113313]
[1766214857117,0.02836,88314.0,88298.0,0.0002]
[1766214857616,0.02836,88314.0,88298.0,0.0115314]
[1766214858514,0.02836,88314.0,88298.0,0.0113314]
[1766214862218,0.02836,88314.0,88297.0,0.00016984]
[1766214862419,0.02852948,88314.0,88297.0,0.00016984]
[1766214864515,0.02852948,88314.0,88297.0,0.01150144]
[1766214877539,0.00016948,88314.0,88301.0,0.011331]
[1766214877727,0.00016948,88314.0,88300.0,0.27103685]
[1766214879234,0.00016948,88314.0,88304.0,0.0113307]
[1766214879427,8e-08,88314.0,88304.0,0.02836]
[1766214880324,8e-08,88314.0,88308.0,0.0113302]
[1766214886439,8e-08,88314.0,88304.0,0.31070946]
[1766214888641,8e-08,88314.0,88304.0,0.29937886]
[1766214890246,8e-08,88314.0,88304.0,0.31070946]
[1766214892147,8e-08,88314.0,88310.0,0.0113299]
[1766214895050,0.00196,88330.0,88318.0,0.0113288]
[1766214895258,0.00016,88339.0,88321.0,0.0113285]
[1766214895446,0.00016,88339.0,88322.0,0.0106]
[1766214896049,0.00016,88339.0,88322.0,0.01076984]
[1766214896865,0.00016,88339.0,88329.0,0.27101886]
[1766214897050,0.00016,88339.0,88324.0,0.0113281]
[1766214897361,0.00016,88339.0,88329.0,0.27101886]
[1766214898350,0.00016,88339.0,88324.0,0.0113281]
[1766214898548,0.00016,88339.0,88329.0,0.27101886]
[1766214899658,0.00016,88339.0,88327.0,0.0113277]
[1766214899953,0.00016,88339.0,88329.0,0.27101886]
[1766214902651,0.0113225,88368.0,88330.0,0.0113273]
[1766214902861,0.0113248,88351.0,88340.0,0.00016984]
[1766214903157,0.27101886,88350.0,88340.0,0.00016984]
[1766214903756,0.02836,88351.0,88340.0,0.00016984]
[1766214904152,0.02836,88351.0,88341.0,0.0113259]
[1766214904451,0.02836,88351.0,88340.0,0.00016984]
[1766214907459,0.02836,88351.0,88334.0,0.02836]
[1766214907759,0.02836,88351.0,88335.0,0.0113267]
[1766214915557,0.02836,88351.0,88338.0,0.0113263]
[1766214916165,0.02836,88351.0,88340.0,0.27101886]
[1766214916366,0.02836,88351.0,88338.0,0.0113263]
[1766214920686,0.02836,88351.0,88334.0,0.03985664]
[1766214925383,0.02836,88351.0,88337.0,0.0113264]
[1766214929191,0.02836,88351.0,88334.0,0.02852984]
[1766214929487,0.02836,88351.0,88335.0,0.0113267]
[1766214929890,0.02836,88351.0,88338.0,0.0113263]
[1766214930785,0.02836,88351.0,88334.0,0.03985664]
[1766214930986,0.02836,88351.0,88338.0,0.0113263]
[1766214932285,0.02557492,88350.0,88338.0,0.0113263]
[1766214932484,0.02836,88351.0,88338.0,0.0113263]
[1766214932691,0.02557499,88350.0,88334.0,0.03985664]
[1766214932893,0.02836,88351.0,88334.0,0.03985664]
[1766214933079,0.02557496,88350.0,88334.0,0.02852984]
[1766214933278,0.02836,88351.0,88337.0,0.0113265]
[1766214933492,0.02557617,88350.0,88337.0,0.0113265]
[1766214933791,0.02836,88351.0,88337.0,0.0113265]
[1766214933994,0.02557625,88350.0,88337.0,0.0113265]
[1766214934195,0.02836,88351.0,88337.0,0.0113265]
[1766214934493,0.02557625,88350.0,88337.0,0.0113265]
[1766214934694,0.02836,88351.0,88337.0,0.0113265]
[1766214934893,0.02557627,88350.0,88337.0,0.0113265]
[1766214935094,0.02836,88351.0,88337.0,0.0113265]
[1766214935296,0.02557627,88350.0,88337.0,0.0113265]
[1766214935594,0.02836,88351.0,88337.0,0.0113265]
[1766214935895,0.02557568,88350.0,88337.0,0.0113265]
[1766214936096,0.02836,88351.0,88337.0,0.0113265]
[1766214936292,0.02557555,88350.0,88340.0,0.27101886]
[1766214936594,0.00016984,88352.0,88340.0,0.27101886]
[1766214936795,0.02559353,88351.0,88340.0,0.27101886]
[1766214936994,0.02559353,88350.0,88340.0,0.27101886]
[1766214937190,0.00016984,88352.0,88340.0,0.27101886]
[1766214937397,0.02559356,88351.0,88340.0,0.27101886]
[1766214937597,0.02559356,88350.0,88340.0,0.27101886]
[1766214937797,0.00016984,88352.0,88340.0,0.27101886]
[1766214937997,0.02559343,88351.0,88340.0,0.27101886]
[1766214938196,0.02559343,88350.0,88340.0,0.27101886]
[1766214938388,0.00016984,88352.0,88340.0,0.27101886]
[1766214938590,0.02559334,88351.0,88340.0,0.27101886]
[1766214938790,0.02559334,88350.0,88340.0,0.27101886]
[1766214938989,0.00016984,88352.0,88340.0,0.27101886]
[1766214939194,0.02559327,88351.0,88340.0,0.27101886]
[1766214939398,0.02559327,88350.0,88340.0,0.27101886]
[1766214939596,0.00016984,88352.0,88340.0,0.27101886]
[1766214939797,0.02559331,88351.0,88340.0,0.27101886]
[1766214940085,0.02559331,88350.0,88340.0,0.27101886]
[1766214940284,0.00016984,88352.0,88340.0,0.27101886]
[1766214940497,0.02559325,88351.0,88340.0,0.27101886]
[1766214940698,0.02559325,88350.0,88340.0,0.27101886]
[1766214940898,0.02559325,88350.0,88338.0,0.0113263]
[1766214940899,0.00016984,88352.0,88338.0,0.0113263]
[1766214941094,0.02559337,88351.0,88338.0,0.0113263]
[1766214941296,0.02559337,88350.0,88338.0,0.0113263]
[1766214941501,0.00016984,88352.0,88338.0,0.0113263]
[1766214941696,0.02559336,88351.0,88338.0,0.0113263]
[1766214941897,0.02559336,88350.0,88338.0,0.0113263]
[1766214942099,0.00016984,88352.0,88338.0,0.0113263]
[1766214942298,0.02559334,88351.0,88338.0,0.0113263]
[1766214942495,0.02559334,88350.0,88338.0,0.0113263]
[1766214942696,0.00016984,88352.0,88338.0,0.0113263]
[1766214942897,0.02559343,88351.0,88338.0,0.0113263]
[1766214943098,0.02559343,88350.0,88338.0,0.0113263]
[1766214943298,0.00016984,88352.0,88338.0,0.0113263]
[1766214943498,0.02559356,88351.0,88338.0,0.0113263]
[1766214943703,0.02559356,88350.0,88338.0,0.0113263]
[1766214943903,0.00016984,88352.0,88338.0,0.0113263]
[1766214944105,0.0255938,88351.0,88338.0,0.0113263]
[1766214944304,0.0255938,88350.0,88338.0,0.0113263]
[1766214944507,0.00016984,88352.0,88338.0,0.0113263]
[1766214944704,0.02559394,88351.0,88338.0,0.0113263]
[1766214945004,0.02559394,88350.0,88338.0,0.0113263]
[1766214945205,0.00016984,88352.0,88338.0,0.0113263]
[1766214945404,0.02559395,88351.0,88338.0,0.0113263]
[1766214945605,0.02559395,88350.0,88338.0,0.0113263]
[1766214945806,0.00016984,88352.0,88338.0,0.0113263]
[1766214946003,0.02559416,88351.0,88338.0,0.0113263]
[1766214946205,0.02559416,88350.0,88338.0,0.0113263]
[1766214946400,0.00016984,88352.0,88338.0,0.0113263]
[1766214946601,0.02559412,88351.0,88338.0,0.0113263]
[1766214946897,0.02559412,88350.0,88338.0,0.0113263]
[1766214947102,0.00016984,88352.0,88338.0,0.0113263]
[1766214947306,0.02559412,88351.0,88338.0,0.0113263]
[1766214947507,0.02559412,88350.0,88338.0,0.0113263]
[1766214947804,0.00016984,88352.0,88338.0,0.0113263]
[1766214947994,0.02559409,88351.0,88338.0,0.0113263]
[1766214948193,0.02559409,88350.0,88338.0,0.0113263]
[1766214948396,0.00016984,88352.0,88338.0,0.0113263]
[1766214948597,0.02559406,88351.0,88338.0,0.0113263]
[1766214948792,0.02559406,88350.0,88338.0,0.0113263]
[1766214948996,0.00016984,88352.0,88338.0,0.0113263]
[1766214949192,0.02559406,88351.0,88338.0,0.0113263]
[1766214949406,0.02559406,88350.0,88338.0,0.0113263]
[1766214949607,0.00016984,88352.0,88338.0,0.0113263]
[1766214949807,0.02559403,88351.0,88338.0,0.0113263]
[1766214949999,0.02559403,88350.0,88338.0,0.0113263]
[1766214950200,0.00016984,88352.0,88338.0,0.0113263]
[1766214950400,0.02559407,88351.0,88338.0,0.0113263]
[1766214950600,0.02559407,88350.0,88338.0,0.0113263]
[1766214950806,0.00016984,88352.0,88338.0,0.0113263]
[1766214951105,0.02559404,88351.0,88338.0,0.0113263]
[1766214951305,0.02559404,88350.0,88338.0,0.0113263]
[1766214951507,0.00016984,88352.0,88338.0,0.0113263]
[1766214951708,0.02559397,88351.0,88338.0,0.0113263]
[1766214951906,0.02559397,88350.0,88338.0,0.0113263]
[1766214952108,0.00016984,88352.0,88338.0,0.0113263]
[1766214952307,0.02559398,88351.0,88338.0,0.0113263]
[1766214952508,0.02559398,88350.0,88338.0,0.0113263]
[1766214952808,0.00016984,88352.0,88338.0,0.0113263]
[1766214953008,0.02559391,88351.0,88338.0,0.0113263]
[1766214953209,0.02559391,88350.0,88338.0,0.0113263]
[1766214953408,0.00016984,88352.0,88338.0,0.0113263]
[1766214953609,0.02559382,88351.0,88338.0,0.0113263]
[1766214953911,0.02559382,88350.0,88338.0,0.0113263]
[1766214954207,0.00016984,88352.0,88334.0,0.03985664]
[1766214954407,0.02559376,88351.0,88334.0,0.03985664]
[1766214954612,0.02559376,88350.0,88337.0,0.0113264]
[1766214954810,0.00016984,88352.0,88337.0,0.0113264]
[1766214955006,0.02559357,88351.0,88337.0,0.0113264]
[1766214955207,0.02559357,88350.0,88334.0,0.02852984]
[1766214955413,0.00016984,88352.0,88334.0,0.02852984]
[1766214955611,0.02559352,88351.0,88334.0,0.02852984]
[1766214955908,0.02559352,88350.0,88334.0,0.02852984]
[1766214956110,0.00016984,88352.0,88334.0,0.02852984]
[1766214956313,0.02559335,88351.0,88335.0,0.0113267]
[1766214956510,0.02559335,88350.0,88335.0,0.0113267]
[1766214956712,0.00016984,88352.0,88335.0,0.0113267]
[1766214956898,0.02559331,88351.0,88335.0,0.0113267]
[1766214957103,0.02559331,88350.0,88335.0,0.0113267]
[1766214957301,0.00016984,88352.0,88335.0,0.0113267]
[1766214957502,0.02559333,88351.0,88335.0,0.0113267]
[1766214957798,0.02559333,88350.0,88335.0,0.0113267]
[1766214958001,0.00016984,88352.0,88335.0,0.0113267]
[1766214958199,0.02559361,88351.0,88335.0,0.0113267]
[1766214958409,0.02559361,88350.0,88335.0,0.0113267]
[1766214958610,0.00016984,88352.0,88335.0,0.0113267]
[1766214958810,0.02559408,88351.0,88335.0,0.0113267]
[1766214959006,0.02559408,88350.0,88335.0,0.0113267]
[1766214959207,0.00016984,88352.0,88335.0,0.0113267]
[1766214959507,0.02559406,88351.0,88335.0,0.0113267]
[1766214959706,0.02559406,88350.0,88335.0,0.0113267]
[1766214959905,0.00016984,88352.0,88335.0,0.0113267]
[1766214960107,0.02559404,88351.0,88335.0,0.0113267]
[1766214960409,0.02559404,88350.0,88335.0,0.0113267]
[1766214960620,0.00016984,88352.0,88335.0,0.0113267]
[1766214960815,0.02559404,88351.0,88335.0,0.0113267]
[1766214961010,0.02559404,88350.0,88335.0,0.0113267]
[1766214961210,0.00016984,88352.0,88335.0,0.0113267]
[1766214961407,0.02559414,88351.0,88335.0,0.0113267]
[1766214961612,0.02559414,88350.0,88335.0,0.0113267]
[1766214961813,0.00016984,88352.0,88335.0,0.0113267]
[1766214962112,0.02559416,88351.0,88335.0,0.0113267]
[1766214962415,0.02559416,88350.0,88335.0,0.0113267]
[1766214962614,0.00016984,88352.0,88335.0,0.0113267]
[1766214962916,0.02559418,88351.0,88335.0,0.0113267]
[1766214963115,0.02559418,88350.0,88335.0,0.0113267]
[1766214963317,0.00016984,88352.0,88335.0,0.0113267]
[1766214963505,0.02559425,88351.0,88335.0,0.0113267]
[1766214963805,0.02559425,88350.0,88334.0,0.02852984]
[1766214964113,0.00016984,88352.0,88334.0,0.02852984]
[1766214964314,0.02559423,88351.0,88334.0,0.02852984]
[1766214964614,0.0113265,88337.0,88334.0,4e-08]
[1766214964917,0.0113281,88325.0,88311.0,0.01028]
[1766214965103,0.0113282,88324.0,88303.0,0.0113308]
[1766214965410,0.02832,88340.0,88304.0,0.02832]
[1766214965612,0.0113274,88330.0,88304.0,0.02832]
[1766214965816,0.00016984,88326.0,88312.0,0.0113296]
[1766214967525,0.00016984,88326.0,88310.0,0.27085283]
[1766214968815,0.00016984,88326.0,88311.0,0.02832]
[1766214969118,0.00016984,88326.0,88308.0,0.00016984]
[1766214969316,0.0113285,88322.0,88308.0,0.00016984]
[1766214969512,0.00016984,88326.0,88308.0,4e-08]
[1766214969717,0.01133,88310.0,88285.0,0.0113331]
[1766214969922,0.01133,88310.0,88286.0,0.02836]
[1766214970119,0.01133,88310.0,88287.0,0.0113329]
[1766214970719,0.00016984,88307.0,88290.0,0.00016984]
[1766214972216,0.00016984,88307.0,88290.0,0.28235507]
[1766214972423,0.00016984,88307.0,88293.0,0.011332]
[1766214973622,0.00016984,88307.0,88296.0,0.0113316]
[1766214978229,0.02836,88313.0,88290.0,0.27102267]
[1766214978819,0.02836,88313.0,88296.0,0.0113317]
[1766214979226,0.02852984,88313.0,88296.0,0.0113317]
[1766214982431,0.02852984,88313.0,88299.0,0.0113313]
[1766214984830,0.02852984,88313.0,88295.0,0.0396918]
[1766214991631,0.27108526,88305.0,88277.0,0.0113341]
[1766214991827,0.0113315,88298.0,88275.0,0.0113344]
[1766214992025,0.0113315,88298.0,88274.0,0.02836]
[1766214992525,0.0113315,88298.0,88274.0,0.0396945]
[1766214992726,0.00016984,88295.0,88277.0,0.00016984]
[1766214995734,0.0113323,88292.0,88277.0,0.00016984]
[1766214996136,0.0113331,88286.0,88277.0,0.00016984]
[1766214996331,0.0113329,88287.0,88273.0,0.00392]
[1766214998434,0.0113324,88291.0,88273.0,0.00392]
[1766214998635,0.0113327,88289.0,88273.0,0.00392]
[1766214999133,0.0113331,88286.0,88271.0,0.00016984]
[1766214999328,0.30117786,88290.0,88271.0,0.00016984]
[1766214999534,0.0300926,88290.0,88271.0,0.00016984]
[1766215001533,0.01876,88290.0,88271.0,0.00016984]
[1766215003437,0.29002727,88290.0,88271.0,0.00016984]
[1766215003942,0.0113326,88289.0,88271.0,0.00016984]
[1766215004537,0.0113331,88286.0,88271.0,0.00016984]
[1766215005735,0.01876,88290.0,88272.0,0.0113348]
[1766215005937,0.29002727,88290.0,88272.0,0.0113348]
[1766215006839,0.01876,88290.0,88272.0,0.0113348]
[1766215007042,0.01876,88290.0,88275.0,0.0113344]
[1766215007740,0.29002727,88290.0,88275.0,0.0113344]
[1766215010837,0.29002727,88290.0,88278.0,0.011334]
[1766215011737,0.01876,88290.0,88271.0,0.00016984]
[1766215012436,0.01876,88290.0,88282.0,0.0113335]
[1766215013035,0.00016984,88295.0,88282.0,0.0113335]
[1766215013036,0.02836,88291.0,88282.0,0.0113335]
[1766215014549,0.02836,88293.0,88284.0,0.0113332]
[1766215014843,0.02832,88293.0,88284.0,0.0113332]
[1766215016144,0.00016984,88295.0,88284.0,0.0113332]
[1766215016345,0.00016984,88295.0,88280.0,0.28260097]
[1766215017342,0.00016984,88295.0,88280.0,0.0113337]
[1766215017544,0.00016984,88295.0,88280.0,0.28260097]
[1766215018447,0.00016984,88295.0,88280.0,0.27126727]
[1766215019740,0.00016984,88295.0,88277.0,0.02836]
[1766215019950,0.00016984,88295.0,88280.0,0.27126727]
[1766215022947,0.00016984,88295.0,88280.0,0.27119187]
[1766215026148,0.01150174,88295.0,88280.0,0.27119187]
[1766215027856,0.00016984,88295.0,88280.0,0.27119187]
[1766215028852,0.00016984,88295.0,88281.0,0.02836]
[1766215040273,0.00016984,88295.0,88282.0,0.0113335]
[1766215041379,0.00016984,88295.0,88281.0,0.02836]
[1766215045579,0.011332,88294.0,88281.0,0.02836]
[1766215051887,0.00016984,88295.0,88281.0,0.02836]
[1766215054185,0.01150174,88295.0,88281.0,0.02836]
[1766215060190,0.00016984,88295.0,88281.0,0.02836]
[1766215072898,0.019,88296.0,88281.0,0.02836]
[1766215073098,0.01,88296.0,88281.0,0.02836]
[1766215076301,0.0113325,88290.0,88272.0,0.02088]
[1766215076800,0.0113325,88290.0,88271.0,0.00016984]
[1766215077002,0.0113325,88290.0,88271.0,0.02084984]
[1766215080405,0.011332,88295.0,88272.0,0.0113348]
[1766215080606,0.0113322,88293.0,88272.0,0.0113348]
[1766215080802,0.0113322,88293.0,88271.0,0.02084984]
[1766215080803,0.01,88296.0,88271.0,0.02084984]
[1766215081103,0.02599719,88295.0,88276.0,0.0113342]
[1766215081294,0.01,88296.0,88279.0,0.0113339]
[1766215081492,0.02599725,88295.0,88275.0,0.0113343]
[1766215081707,0.00644,88296.0,88275.0,0.0113343]
[1766215082708,0.0113319,88295.0,88275.0,0.0113343]
[1766215084907,0.00644,88296.0,88275.0,0.0113343]
[1766215085807,0.00644,88296.0,88278.0,0.011334]
[1766215086003,1.44524,88309.0,88280.0,0.27121011]
[1766215086208,0.05435721,88308.0,88280.0,0.27121011]
[1766215086395,0.02599721,88307.0,88278.0,0.02836]
[1766215086706,0.02836,88308.0,88278.0,0.02836]
[1766215086707,0.0113306,88305.0,88280.0,0.27121011]
[1766215086906,0.0113308,88303.0,88283.0,0.0113333]
[1766215087207,0.02616705,88302.0,88284.0,0.00016984]
[1766215087505,0.02599721,88301.0,88285.0,0.02836]
[1766215087706,0.00016984,88302.0,88285.0,0.02836]
[1766215087907,0.02598148,88301.0,88285.0,0.02836]
[1766215088105,0.00016984,88302.0,88285.0,0.02836]
[1766215088306,0.02598147,88301.0,88285.0,0.02836]
[1766215088508,0.00016984,88302.0,88285.0,0.02836]
[1766215089713,0.00016984,88302.0,88286.0,0.0113329]
[1766215090812,0.00016984,88302.0,88285.0,0.02836]
[1766215093515,0.00016984,88302.0,88285.0,0.0396931]
[1766215094804,0.00016984,88302.0,88285.0,0.02836]
[1766215096808,0.03730259,88301.0,88285.0,0.02836]
[1766215097013,0.0113311,88301.0,88285.0,0.02836]
[1766215098814,0.00016984,88302.0,88285.0,0.02836]
[1766215100618,0.01150084,88302.0,88285.0,0.02836]
[1766215101107,0.0113312,88300.0,88285.0,0.02836]
[1766215101313,0.0113316,88297.0,88285.0,0.02836]
[1766215106222,0.0113312,88301.0,88285.0,0.02836]
[1766215107422,0.0113315,88298.0,88284.0,0.00016984]
[1766215110121,0.00016984,88302.0,88284.0,0.00016984]
[1766215110322,0.02597789,88301.0,88284.0,0.00016984]
[1766215110518,0.02597789,88300.0,88284.0,0.00016984]
[1766215110818,0.00016984,88302.0,88284.0,0.00016984]
[1766215111018,0.02597797,88301.0,88284.0,0.00016984]
[1766215111219,0.02597797,88300.0,88284.0,0.00016984]
[1766215111428,0.0113311,88301.0,88284.0,0.00016984]
[1766215111620,0.02597916,88300.0,88284.0,0.00016984]
[1766215111820,0.00016984,88302.0,88284.0,0.00016984]
[1766215112023,0.02597914,88301.0,88284.0,0.00016984]
[1766215112222,0.02597914,88300.0,88284.0,0.00016984]
[1766215112423,0.00016984,88302.0,88284.0,0.00016984]
[1766215112620,0.03731159,88301.0,88284.0,0.00016984]
[1766215112819,0.0113315,88298.0,88284.0,0.00016984]
[1766215119529,0.0092,88297.0,88274.0,0.00172]
[1766215119728,0.0113321,88293.0,88274.0,0.00172]
[1766215120029,0.0113329,88287.0,88274.0,0.00172]
[1766215120426,0.0113328,88288.0,88274.0,0.00172]
[1766215121829,0.0113323,88292.0,88274.0,0.00172]
[1766215122431,0.0092,88297.0,88274.0,0.00172]
[1766215123524,0.011333,88287.0,88272.0,0.00016984]
[1766215123731,0.0113334,88284.0,88272.0,0.00016984]
[1766215124231,0.0113328,88288.0,88272.0,0.00016984]
[1766215125032,0.0113323,88292.0,88272.0,0.00016984]
[1766215125432,0.27125627,88290.0,88272.0,0.00016984]
[1766215125634,0.0113326,88289.0,88272.0,0.00016984]
[1766215126936,0.02836,88288.0,88272.0,0.00016984]
[1766215132542,0.011333,88287.0,88272.0,0.00016984]
[1766215132934,0.02836,88288.0,88272.0,0.00016984]
[1766215141842,0.02836,88288.0,88273.0,0.0113346]
[1766215142146,0.02836,88288.0,88278.0,0.27125701]
[1766215142349,0.02836,88288.0,88273.0,0.0113346]
[1766215143747,0.01548,88292.0,88273.0,0.0113346]
[1766215146244,0.01548,88292.0,88276.0,0.0113342]
[1766215147954,0.01548,88292.0,88279.0,0.0113338]
[1766215148156,0.01548,88292.0,88280.0,0.27125701]
[1766215149854,0.01548,88292.0,88281.0,0.0113336]
[1766215151651,0.02836,88297.0,88281.0,0.0113336]
[1766215152259,0.02836,88297.0,88280.0,0.27125701]
[1766215155066,0.02836,88297.0,88280.0,0.28259071]
[1766215155366,0.02836,88297.0,88280.0,0.27125701]
[1766215156167,0.02836,88297.0,88280.0,0.17125701]
[1766215157268,0.02836,88298.0,88280.0,0.17125701]
[1766215157469,0.02836,88298.0,88281.0,0.02836]
[1766215158564,0.02836,88298.0,88282.0,0.02836]
[1766215160766,0.27125701,88300.0,88282.0,0.02836]
[1766215160971,0.05432099,88299.0,88282.0,0.02836]
[1766215161271,0.02836,88299.0,88282.0,0.02836]
[1766215162667,0.02836,88298.0,88282.0,0.02836]
[1766215164370,0.27119651,88300.0,88282.0,0.02836]